Workbook

Sheet تكلفة البيانات والمخطط
B1: تحليل التكلفة - باريتو
B2: يوجد مخطط باريتو للنسبة المئوية التراكمية للتكاليف السنوية عبر جميع مراكز التكلفة في الخلايا من B2 إلى E3.
B4: تحليل التكلفة
B5: مركز تكلفة | C5: التكلفة السنوية | D5: النسبة المئوية للإجمالي | E5: النسبة المئوية التراكمية
B6: أجزاء ومواد | C6: ر.س.‏ 1,325,000.00 | D6: =IFERROR(بيانات[[#This Row],[التكلفة السنوية ]]/SUM(بيانات[[التكلفة السنوية ]]), "") -> 31.17% | E6: =IFERROR(SUM(INDEX(بيانات[النسبة المئوية للإجمالي],1):بيانات[[#This Row],[النسبة المئوية للإجمالي]]), "") -> 31.17%
B7: معدات التصنيع | C7: ر.س.‏ 900,500.00 | D7: =IFERROR(بيانات[[#This Row],[التكلفة السنوية ]]/SUM(بيانات[[التكلفة السنوية ]]), "") -> 21.19% | E7: =IFERROR(SUM(INDEX(بيانات[النسبة المئوية للإجمالي],1):بيانات[[#This Row],[النسبة المئوية للإجمالي]]), "") -> 52.36%
B8: الرواتب | C8: ر.س.‏ 575,000.00 | D8: =IFERROR(بيانات[[#This Row],[التكلفة السنوية ]]/SUM(بيانات[[التكلفة السنوية ]]), "") -> 13.53% | E8: =IFERROR(SUM(INDEX(بيانات[النسبة المئوية للإجمالي],1):بيانات[[#This Row],[النسبة المئوية للإجمالي]]), "") -> 65.89%
B9: الصيانة | C9: ر.س.‏ 395,000.00 | D9: =IFERROR(بيانات[[#This Row],[التكلفة السنوية ]]/SUM(بيانات[[التكلفة السنوية ]]), "") -> 9.29% | E9: =IFERROR(SUM(INDEX(بيانات[النسبة المئوية للإجمالي],1):بيانات[[#This Row],[النسبة المئوية للإجمالي]]), "") -> 75.18%
B10: تأجير المكتب | C10: ر.س.‏ 295,000.00 | D10: =IFERROR(بيانات[[#This Row],[التكلفة السنوية ]]/SUM(بيانات[[التكلفة السنوية ]]), "") -> 6.94% | E10: =IFERROR(SUM(INDEX(بيانات[النسبة المئوية للإجمالي],1):بيانات[[#This Row],[النسبة المئوية للإجمالي]]), "") -> 82.12%
B11: تأجير المستودع | C11: ر.س.‏ 250,000.00 | D11: =IFERROR(بيانات[[#This Row],[التكلفة السنوية ]]/SUM(بيانات[[التكلفة السنوية ]]), "") -> 5.88% | E11: =IFERROR(SUM(INDEX(بيانات[النسبة المئوية للإجمالي],1):بيانات[[#This Row],[النسبة المئوية للإجمالي]]), "") -> 88.00%
B12: التأمين | C12: ر.س.‏ 180,000.00 | D12: =IFERROR(بيانات[[#This Row],[التكلفة السنوية ]]/SUM(بيانات[[التكلفة السنوية ]]), "") -> 4.23% | E12: =IFERROR(SUM(INDEX(بيانات[النسبة المئوية للإجمالي],1):بيانات[[#This Row],[النسبة المئوية للإجمالي]]), "") -> 92.24%
B13: المزايا والمعاشات | C13: ر.س.‏ 130,000.00 | D13: =IFERROR(بيانات[[#This Row],[التكلفة السنوية ]]/SUM(بيانات[[التكلفة السنوية ]]), "") -> 3.06% | E13: =IFERROR(SUM(INDEX(بيانات[النسبة المئوية للإجمالي],1):بيانات[[#This Row],[النسبة المئوية للإجمالي]]), "") -> 95.29%
B14: المركبات | C14: ر.س.‏ 125,000.00 | D14: =IFERROR(بيانات[[#This Row],[التكلفة السنوية ]]/SUM(بيانات[[التكلفة السنوية ]]), "") -> 2.94% | E14: =IFERROR(SUM(INDEX(بيانات[النسبة المئوية للإجمالي],1):بيانات[[#This Row],[النسبة المئوية للإجمالي]]), "") -> 98.24%
B15: البحث | C15: ر.س.‏ 75,000.00 | D15: =IFERROR(بيانات[[#This Row],[التكلفة السنوية ]]/SUM(بيانات[[التكلفة السنوية ]]), "") -> 1.76% | E15: =IFERROR(SUM(INDEX(بيانات[النسبة المئوية للإجمالي],1):بيانات[[#This Row],[النسبة المئوية للإجمالي]]), "") -> 100.00%
B16: الإجمالي | C16: =SUBTOTAL(109,بيانات[[التكلفة السنوية ]]) -> ر.س.‏ 4,250,500.00 | D16: =SUBTOTAL(109,بيانات[النسبة المئوية للإجمالي]) -> 100.00%
